bitfinex/quotes_ETHUSD_20240729
["timestamp","ask_amount","ask_price","bid_price","bid_amount"]
[1722236738110,2.4133,3384.9,3384.5,2.36364]
[1722236738311,2.4133,3384.9,3384.4,7.43]
[1722236738312,4.77674,3384.9,3384.4,7.43]
[1722236738612,2.4133,3384.9,3384.4,7.43]
[1722236738787,2.4133,3384.9,3384.5,2.36369]
[1722236739415,2.4133,3384.9,3384.4,9.79378]
[1722236739705,2.4133,3384.9,3384.5,2.36371]
[1722236739913,2.4133,3384.9,3384.6,2.36364]
[1722236740801,2.60581591,3385.0,3384.6,2.36364]
[1722236740998,1.86163571,3385.0,3384.6,2.36364]
[1722236741187,1.86163571,3385.0,3384.4,12.15751]
[1722236741384,1.86163571,3385.0,3384.4,9.79373]
[1722236741385,1.86189108,3385.0,3384.4,9.79373]
[1722236741868,1.86189269,3385.0,3384.4,9.79373]
[1722236742819,1.86189269,3385.0,3384.5,2.36371]
[1722236743026,0.35988727,3384.9,3384.5,2.36371]
[1722236744084,2.22211319,3384.9,3384.5,2.36371]
[1722236744595,2.22229234,3384.9,3384.5,2.36371]
[1722236745128,0.35988727,3384.9,3384.5,2.36371]
[1722236745422,2.22229234,3384.9,3384.5,2.36371]
[1722236746983,2.22229234,3384.9,3384.3,2.36385]
[1722236747189,2.22229234,3384.9,3384.1,22.17396]
[1722236747190,2.3825,3384.7,3384.1,22.17396]
[1722236747526,6.60853507,3384.7,3384.1,22.17396]
[1722236747924,6.60859511,3384.7,3384.1,22.17396]
[1722236748114,1.86246511,3384.6,3384.1,22.17396]
[1722236748315,0.99239422,3384.6,3384.1,22.17396]
[1722236748852,5.21849933,3384.6,3384.1,19.81]
[1722236748985,2.36373,3384.5,3384.1,19.81]
[1722236749294,2.42293198,3384.5,3384.1,19.81]
[1722236749637,2.36378,3384.4,3384.1,19.81]
[1722236749928,2.36378,3384.4,3383.9,2.36413]
[1722236750090,1.05565389,3384.5,3383.9,2.36413]
[1722236750736,0.99645191,3384.5,3384.0,2.364]
[1722236751304,1.86178343,3384.8,3384.4,2.36374]
[1722236751503,1.86154146,3384.8,3384.5,2.36371]
[1722236751720,1.86154146,3385.0,3384.1,4.8898]
[1722236751911,1.86154146,3385.0,3384.6,2.36364]
[1722236752236,1.17692698,3385.0,3384.5,2.36371]
[1722236753214,3.03846844,3385.0,3384.5,2.36371]
[1722236753629,1.17692698,3385.0,3384.6,2.36364]
[1722236753809,3.0384894,3385.0,3384.6,2.36364]
[1722236754211,3.03848746,3385.0,3384.8,2.3635]
[1722236754428,1.86156048,3385.1,3384.8,2.3635]
[1722236756821,1.86156048,3385.1,3385.0,2.36336]
[1722236757027,1.86156048,3385.3,3385.0,2.36336]
[1722236757395,5.4129,3385.6,3385.0,2.36336]
[1722236757601,1.86180194,3385.3,3385.0,2.36336]
[1722236758100,1.86180194,3385.3,3385.1,2.36328]
[1722236758503,4.86180194,3385.4,3385.1,2.36328]
[1722236760446,4.86180194,3385.4,3385.2,2.36322]
[1722236760649,4.86153205,3385.4,3385.2,2.36322]
[1722236760845,5.90563,3385.4,3385.2,2.36322]
[1722236761030,4.04409795,3385.4,3385.1,2.36329]
[1722236761240,2.90560807,3385.4,3385.1,2.36329]
[1722236762871,2.90567694,3385.4,3385.1,2.36329]
[1722236763447,2.90567694,3385.4,3384.9,2.3634]
[1722236763448,2.90558339,3385.4,3384.9,2.3634]
[1722236763639,2.92963778,3385.3,3384.9,2.3634]
[1722236764089,2.92940777,3385.3,3384.9,2.3634]
[1722236764576,2.92940777,3385.3,3384.7,9.79355]
[1722236764778,2.92940777,3385.3,3384.7,7.43]
[1722236764779,1.86125543,3385.2,3384.7,7.43]
[1722236764959,4.32375543,3385.1,3384.7,7.43]
[1722236765172,4.32375543,3385.1,3384.7,9.79356]
[1722236765387,1.86125543,3385.0,3384.7,7.43]
[1722236765553,4.22463543,3385.0,3384.7,7.43]
[1722236766065,2.36338,3385.0,3384.7,7.43]
[1722236766264,0.9049276,3384.9,3384.7,7.43]
[1722236766794,0.9049276,3384.9,3384.4,2.36378]
[1722236769190,0.9049276,3384.9,3384.1,7.43]
[1722236769191,2.36362,3384.7,3384.1,7.43]
[1722236769500,2.36362,3384.7,3383.6,2.2857]
[1722236769501,4.68386,3384.5,3383.9,2.36408]
[1722236769706,4.68386,3384.5,3383.8,7.43]
[1722236769707,4.68386,3384.5,3384.0,2.36406]
[1722236770263,2.36379,3384.4,3383.8,9.79416]
[1722236770459,0.98866799,3384.4,3383.8,7.43]
[1722236770666,2.3641,3384.0,3383.8,7.43]
[1722236770867,2.36415,3383.9,3383.2,9.79457]
[1722236771069,2.42335198,3383.9,3383.2,9.79457]
[1722236771665,4.28430534,3383.9,3383.2,9.79457]
[1722236771905,2.36421,3383.8,3383.2,7.43]
[1722236772101,2.36442,3383.5,3383.2,7.43]
[1722236772309,2.36455,3383.3,3383.2,7.43]
[1722236772470,2.36455,3383.3,3382.6,29.27504]
[1722236773485,2.3003,3383.6,3383.0,2.36475]
[1722236773684,0.42843653,3383.8,3383.0,2.36475]
[1722236773884,3.42843653,3383.8,3383.2,2.36456]
[1722236774195,0.70491182,3383.7,3383.2,2.36456]
[1722236776309,2.36427,3383.7,3383.0,2.36475]
[1722236776512,5.36427,3383.7,3383.0,2.36475]
[1722236777183,2.36441,3383.6,3382.9,2.36483]
[1722236777387,2.36442,3383.5,3382.9,2.36483]
[1722236777712,2.900932,3383.4,3382.7,2.36496]
[1722236778073,2.4248,3383.3,3382.7,2.36496]
[1722236778589,4.78936,3383.3,3382.7,2.36496]
[1722236778786,2.36463,3383.2,3382.6,7.43]
[1722236778972,2.36478,3383.0,3382.6,7.43]
[1722236779193,2.42403198,3382.9,3382.6,7.43]
[1722236779397,2.36483,3382.9,3382.6,7.43]
[1722236779946,2.36481,3383.0,3382.6,7.43]
[1722236780524,0.05920198,3382.9,3382.6,7.43]
[1722236780730,2.36491,3382.8,3382.6,7.43]
[1722236781724,2.36491,3382.8,3382.2,2.3653]
[1722236782295,2.36481,3383.0,3382.1,7.43]
[1722236782498,2.36481,3383.0,3382.3,2.36525]
[1722236782811,2.36483,3382.9,3382.3,2.36525]
[1722236784273,6.5586258,3383.8,3383.0,2.36472]
[1722236784413,2.36429,3383.7,3382.8,7.43]
[1722236784615,2.3392,3383.8,3383.1,2.36467]
[1722236784810,0.23392,3383.7,3383.1,2.36467]
[1722236785395,2.36408,3384.0,3382.8,7.43]
[1722236785603,2.36408,3384.0,3383.2,2.36457]
[1722236786339,2.36413,3383.9,3383.2,2.36457]
[1722236786520,2.36421,3383.8,3383.2,2.36457]
[1722236786841,2.837044,3383.8,3383.2,2.36457]
[1722236788216,0.472834,3383.8,3383.2,2.36457]
[1722236788400,3.0,3383.9,3383.2,2.36457]
[1722236789336,2.3642,3383.8,3383.2,2.36457]
[1722236789508,2.3642,3383.8,3383.0,2.36474]
[1722236789509,0.05920198,3383.7,3383.0,2.36474]
[1722236789704,2.3642,3383.8,3383.0,2.36474]
[1722236789909,0.23642,3383.7,3383.0,2.36474]
[1722236790740,2.3644,3383.6,3383.0,2.36474]
[1722236790907,2.3644,3383.6,3383.1,2.36468]
[1722236791249,2.36414,3383.9,3383.3,2.36455]
[1722236791445,3.0,3383.9,3383.4,2.36447]
[1722236792045,2.36414,3383.9,3383.3,2.36455]
[1722236792852,2.36414,3383.9,3382.8,7.43]
[1722236792853,2.466,3383.8,3382.8,7.43]
[1722236793003,2.36447,3383.5,3382.8,9.79485]
[1722236793214,2.36447,3383.5,3382.9,2.36482]
[1722236794053,2.42348198,3383.7,3383.0,2.36475]
[1722236794846,2.36435,3383.6,3383.0,2.36475]
[1722236795218,2.36441,3383.5,3382.8,9.79485]
[1722236795627,2.36441,3383.5,3382.9,2.36482]
[1722236797328,2.3645,3383.4,3382.8,7.43]
[1722236797515,2.36483,3382.9,3382.8,7.43]
[1722236797716,2.36483,3382.9,3382.1,7.43]
[1722236797916,0.05920198,3382.8,3382.1,7.43]
[1722236798123,2.36497,3382.7,3382.1,9.79534]
[1722236798320,2.36511,3382.5,3381.7,22.17567]
[1722236798523,2.36497,3382.7,3381.7,19.81]
[1722236798718,2.36497,3382.7,3382.1,2.36534]
[1722236799034,3.0,3382.8,3382.3,2.36523]
[1722236799262,2.36485,3382.9,3382.0,2.36546]
[1722236799421,2.36504,3382.6,3382.0,2.36546]
[1722236799934,3.368356,3382.8,3382.1,2.36539]
[1722236800743,2.3649,3382.8,3382.2,2.36532]
[1722236801777,2.36499,3382.7,3381.9,2.36553]
[1722236802064,2.36519,3382.4,3381.7,19.81]
[1722236802276,4.62001,3382.5,3381.7,22.17567]
[1722236802568,2.36492,3382.8,3382.2,2.36532]
[1722236802770,5.4727,3383.0,3381.9,5.0165]
[1722236802924,2.36467,3383.2,3382.3,2.36523]
[1722236803275,3.0,3383.3,3381.9,5.0165]
[1722236803276,0.783737,3383.1,3382.6,2.36503]
[1722236803429,2.36457,3383.3,3382.6,2.36503]
[1722236803766,5.36457,3383.3,3382.6,2.36503]
[1722236803973,2.36481,3383.0,3382.2,2.36528]
[1722236804468,2.36486,3382.9,3382.3,2.36525]
[1722236804674,2.36474,3383.1,3381.9,5.0165]
[1722236804675,2.36474,3383.1,3382.5,2.36511]
[1722236804838,2.4727,3383.4,3382.7,2.36494]
[1722236804839,3.0,3383.2,3382.7,2.36494]
[1722236805167,3.0,3383.2,3382.6,2.36504]
[1722236805168,2.4727,3383.4,3382.9,2.36483]
[1722236805489,2.4727,3383.4,3382.8,2.36485]
[1722236805629,2.4727,3383.4,3382.9,2.36483]
[1722236806776,2.4727,3383.4,3382.8,2.36489]
[1722236807072,2.4727,3383.4,3382.9,2.36483]
[1722236807747,5.2559,3383.7,3383.1,2.36469]
[1722236807945,2.2559,3383.7,3383.3,2.36455]
[1722236808155,4.61997,3384.0,3383.4,2.36448]
[1722236809135,3.0,3383.9,3383.4,2.36448]
[1722236809659,3.0,3383.9,3383.2,2.36457]
[1722236809860,3.0,3383.9,3383.3,2.36454]
[1722236810378,3.0,3383.9,3383.1,9.79469]
[1722236810379,5.36415,3383.9,3383.1,9.79469]
[1722236810578,5.36415,3383.9,3383.2,2.36462]
[1722236811681,5.36415,3383.9,3383.3,2.36454]
[1722236812880,2.36434,3383.7,3383.1,7.43]
[1722236813314,2.36434,3383.7,3383.1,9.79467]
[1722236813726,2.36434,3383.7,3383.1,7.43]
[1722236814504,2.36434,3383.7,3382.9,2.36483]
[1722236814784,2.42359198,3383.6,3382.8,7.43]
[1722236814998,2.36442,3383.5,3382.8,9.79485]
[1722236815195,2.36442,3383.5,3382.9,2.36478]
[1722236815794,2.36442,3383.5,3382.9,2.36482]
[1722236816530,1.85651811,3383.6,3382.9,2.36482]
[1722236816684,4.72859,3383.7,3383.0,2.36476]
[1722236816685,4.22078811,3383.7,3383.0,2.36476]
[1722236816885,2.36434,3383.6,3383.0,2.36476]
[1722236818852,1.85651811,3383.7,3383.0,2.36476]
[1722236819008,1.85651811,3383.7,3383.1,2.36464]
[1722236819210,4.22077811,3383.8,3383.1,2.36464]
[1722236819808,2.36427,3383.7,3382.9,4.72959]
[1722236820131,4.22078811,3383.7,3383.0,2.36474]
[1722236820703,4.22078811,3383.7,3383.1,2.36468]
[1722236820704,1.85908128,3383.7,3383.1,2.36468]
[1722236820948,1.85908128,3384.1,3383.9,2.36413]
[1722236821112,1.85908128,3384.4,3383.9,2.36413]
[1722236821315,4.66683,3384.5,3383.9,2.36413]
[1722236821539,2.3031,3384.5,3384.0,2.36406]
[1722236822040,2.3031,3384.5,3383.8,2.42329903]
[1722236822041,2.3031,3384.5,3383.9,2.36412]
[1722236822246,2.3031,3384.5,3383.8,2.42329903]
[1722236822247,2.3031,3384.5,3384.0,2.36403]
[1722236822758,1.85924622,3384.7,3384.3,2.36385]
[1722236822911,4.32984622,3384.8,3384.3,2.36385]
[1722236823108,4.32984622,3384.8,3384.4,2.36377]
[1722236823324,2.4706,3384.8,3384.4,2.36377]
[1722236823506,1.85924622,3385.0,3384.5,2.3637]
[1722236823706,1.85924622,3385.0,3384.1,7.43]
[1722236824021,1.85924622,3385.4,3384.9,2.36342]
[1722236824253,2.36276,3385.9,3385.2,2.36321]
[1722236824254,2.4706,3385.8,3385.2,2.36321]
[1722236825409,4.83343,3385.8,3385.0,2.36336]
[1722236825608,0.483336,3385.7,3385.1,2.36327]
[1722236826014,2.846216,3385.7,3384.9,9.79339]
[1722236826407,0.483336,3385.7,3384.9,9.79342]
[1722236826609,0.483336,3385.7,3385.1,2.36329]
[1722236826814,2.846216,3385.7,3385.1,2.36329]
[1722236827008,0.483336,3385.7,3385.1,2.36329]
[1722236827437,2.846206,3385.7,3385.1,2.36329]
[1722236827618,0.483336,3385.7,3385.0,2.36334]
[1722236827818,0.5316806,3385.6,3384.9,7.43]
[1722236828124,2.36302,3385.5,3384.9,7.43]
[1722236829333,2.36302,3385.5,3384.8,2.36347]
[1722236829540,2.36294,3385.7,3385.0,2.36336]
[1722236830374,2.36294,3385.7,3384.8,2.3635]
[1722236830375,2.36295,3385.6,3384.8,2.3635]
[1722236830575,2.36295,3385.6,3384.6,7.43]
[1722236830576,2.36309,3385.4,3384.6,9.79359]
[1722236830776,2.36316,3385.3,3384.6,9.79359]
[1722236832580,2.36323,3385.2,3384.6,9.79359]
[1722236832779,2.3424,3385.1,3384.6,9.79359]
[1722236832997,2.3424,3385.1,3384.6,2.36359]
[1722236834287,2.36339,3385.0,3384.2,7.43]
[1722236834593,2.3424,3385.1,3384.4,2.36378]
[1722236834741,2.3424,3385.1,3384.6,2.36364]
[1722236835341,2.3424,3385.1,3384.7,2.36357]
[1722236835542,4.62631,3385.4,3384.7,2.36357]
[1722236836558,4.62631,3385.4,3384.5,2.36371]
[1722236836559,2.36316,3385.3,3384.3,2.36384]
[1722236837071,2.36316,3385.3,3384.6,2.36364]
[1722236839610,2.2632,3385.4,3384.7,2.36356]
[1722236839809,2.2632,3385.4,3384.9,2.36343]
[1722236840697,2.2632,3385.4,3384.7,2.36356]
[1722236840906,4.62629,3385.4,3384.7,2.36356]
[1722236841260,4.62629,3385.4,3384.8,2.36349]
[1722236841882,2.2632,3385.4,3384.9,2.36342]
[1722236842202,2.2632,3385.4,3384.3,5.0699]
[1722236842399,2.2632,3385.4,3384.8,2.36345]
[1722236842757,4.62629,3385.4,3384.5,2.36369]
[1722236842998,2.36317,3385.3,3384.6,2.36359]
[1722236843233,2.36327,3385.2,3384.2,7.43]
[1722236843511,2.36344,3384.9,3384.2,7.43]
[1722236843724,2.36344,3384.9,3384.3,2.36381]
[1722236843887,2.4364,3384.8,3384.3,2.36381]
[1722236845019,2.4364,3384.8,3384.4,2.36378]
[1722236845173,2.4295,3385.1,3384.4,2.36378]
[1722236845373,2.4295,3385.1,3384.6,2.36363]
[1722236846426,2.4295,3385.1,3384.3,2.571]
[1722236846714,2.4295,3385.5,3384.9,2.36339]
[1722236847417,4.79252,3385.5,3384.9,2.36339]
[1722236848095,2.4295,3385.5,3384.9,2.36339]
[1722236848489,2.2757,3385.9,3385.3,2.36314]
[1722236849013,5.2757,3385.9,3385.3,2.36314]
[1722236849311,2.2757,3385.9,3385.3,2.36314]
[1722236849712,2.2757,3385.9,3385.5,2.36296]
[1722236849916,2.2757,3385.9,3385.6,2.36294]
[1722236851174,2.2757,3385.9,3385.7,2.36287]
[1722236851777,2.4434,3386.2,3385.7,2.36287]
[1722236852612,5.586509,3386.2,3385.5,2.36301]
[1722236852980,2.36267,3386.0,3385.4,2.36308]
[1722236853188,2.36274,3385.9,3385.3,2.36315]
[1722236853396,2.36274,3385.9,3385.1,2.36327]
[1722236853397,4.76364,3385.8,3385.1,2.36327]
[1722236853704,4.7634,3386.1,3385.0,7.43]
[1722236853916,4.7634,3386.1,3385.4,2.36304]
[1722236854634,4.7634,3386.1,3385.5,2.36299]
[1722236855196,4.7634,3386.1,3385.3,2.36313]
[1722236855388,4.7634,3386.1,3385.5,2.36297]
[1722236855914,4.7634,3386.1,3385.6,2.36294]
[1722236855915,2.4008,3386.1,3385.6,2.36294]
[1722236857745,2.4008,3386.1,3385.4,2.36303]
[1722236857944,4.7634,3386.1,3385.4,2.36303]
[1722236858967,4.7634,3386.1,3385.0,7.43]
[1722236858968,2.3628,3385.8,3385.0,7.43]
[1722236859811,2.3628,3385.8,3385.2,2.36322]
[1722236860012,2.36288,3385.7,3385.1,2.36329]
[1722236862978,2.36309,3385.4,3385.0,7.43]
[1722236863285,2.3475,3385.5,3385.0,7.43]
[1722236863427,4.71053,3385.5,3385.0,7.43]
[1722236863931,2.36309,3385.4,3385.0,7.43]
[1722236864143,2.36317,3385.3,3385.0,7.43]
[1722236864353,4.71053,3385.5,3385.0,7.43]
[1722236864354,2.3475,3385.5,3385.0,7.43]
[1722236864557,2.3475,3385.5,3385.0,9.79336]
[1722236864763,2.3475,3385.5,3385.1,2.36329]
[1722236865066,2.3475,3385.5,3385.0,2.36336]
[1722236865382,4.71052,3385.5,3384.9,2.36342]
[1722236865937,2.3631,3385.4,3384.7,9.79352]
[1722236866235,4.71052,3385.5,3384.8,2.36349]
[1722236867175,2.3475,3385.5,3385.0,2.36336]
[1722236868469,4.71052,3385.5,3384.8,2.36349]
[1722236868673,2.3475,3385.5,3385.0,2.3633]
[1722236869184,0.05920198,3385.4,3384.7,7.43]
[1722236869516,2.36327,3385.2,3384.7,7.43]
[1722236869782,2.36327,3385.2,3384.5,2.3637]
[1722236869929,2.36327,3385.2,3384.4,2.36373]
[1722236870135,2.36327,3385.2,3384.6,2.36362]
[1722236870632,2.3633,3385.1,3384.5,2.36371]
[1722236870862,2.4629,3385.0,3384.5,2.36371]
[1722236871274,2.4629,3385.0,3384.6,2.36364]
[1722236872743,2.4629,3385.0,3384.4,2.36373]
[1722236873271,2.4629,3385.0,3384.5,2.36369]
[1722236873572,4.82632,3385.0,3384.3,7.43]
[1722236874272,4.82632,3385.0,3384.3,9.79381]
[1722236874570,2.4629,3385.0,3384.4,2.36377]
[1722236875493,2.4629,3385.0,3384.5,2.36371]
[1722236875960,2.4629,3385.0,3384.3,9.79381]
[1722236876170,2.36345,3384.9,3384.3,7.43]
[1722236877168,2.4629,3385.0,3384.3,9.79384]
[1722236877394,2.4629,3385.0,3384.3,7.43]
[1722236877601,2.4629,3385.0,3384.6,2.36358]
[1722236877964,2.4629,3385.0,3384.8,2.3635]
[1722236878268,2.2822,3385.3,3384.8,2.3635]
[1722236878470,2.2822,3385.3,3385.1,2.36328]
[1722236878686,2.4821,3385.6,3385.1,2.36328]
[1722236878995,2.4821,3385.6,3384.9,2.36339]
[1722236880671,2.36302,3385.5,3384.9,2.36339]
[1722236880891,2.36316,3385.3,3384.7,2.36355]
[1722236881206,2.36312,3385.4,3384.7,2.36355]
[1722236882311,2.3063,3385.2,3384.6,2.36364]
[1722236882602,2.3063,3385.2,3384.7,2.36357]
[1722236885404,2.3063,3385.2,3384.8,2.3635]
[1722236885612,2.3063,3385.2,3384.7,2.36357]
[1722236885613,2.3063,3385.2,3384.9,2.36342]
[1722236885758,2.3063,3385.2,3384.7,2.36357]
[1722236885759,2.3011,3385.5,3385.1,2.36329]
[1722236886860,2.3011,3385.5,3384.9,2.36337]
[1722236887257,2.3011,3385.5,3385.0,2.36333]
[1722236887563,2.3011,3385.5,3384.9,2.36337]
[1722236887992,2.3011,3385.5,3384.7,2.36354]
[1722236888198,2.36317,3385.3,3384.7,2.36354]
[1722236888375,2.36317,3385.3,3384.4,4.9677]
[1722236888376,6.94102637,3385.5,3384.8,2.36346]
[1722236888887,2.36313,3385.4,3384.8,2.36346]
[1722236890259,2.36313,3385.4,3384.9,2.36343]
[1722236890998,2.36313,3385.4,3384.7,2.36352]
[1722236892002,2.36313,3385.4,3384.8,2.36349]
[1722236892757,4.22446564,3385.4,3384.8,2.36349]
[1722236893711,4.84905,3385.3,3384.7,2.36357]
[1722236893891,2.4859,3385.3,3384.7,2.36357]
[1722236896866,4.84906,3385.3,3384.7,2.36357]
[1722236897703,2.4859,3385.3,3384.8,2.3635]
[1722236897873,2.4859,3385.3,3384.9,2.36338]
[1722236898079,2.4859,3385.3,3384.9,2.36339]
[1722236898286,2.4859,3385.3,3384.9,2.36337]
[1722236898914,2.4859,3385.3,3385.0,2.36336]
[1722236899594,2.4859,3385.3,3384.8,2.3635]
[1722236900856,2.36323,3385.2,3384.6,2.36361]
[1722236900993,2.4859,3385.3,3384.5,2.36371]
[1722236900994,2.3633,3385.1,3384.5,2.36371]
[1722236901595,2.3344,3385.0,3384.5,2.36371]
[1722236902276,2.39360198,3385.0,3384.3,7.43]
[1722236902607,2.36352,3384.8,3384.3,7.43]
[1722236903595,2.36352,3384.8,3384.1,2.36395]
[1722236904130,2.36372,3384.5,3384.0,12.38]
[1722236904295,2.36372,3384.5,3383.9,9.79413]
[1722236904499,2.4088,3384.6,3383.9,9.79413]
[1722236904700,4.77244,3384.6,3384.0,2.36406]
[1722236906344,2.36371,3384.5,3383.9,7.43]
[1722236906502,2.36371,3384.5,3383.9,9.79413]
[1722236907836,2.4088,3384.6,3384.0,2.36406]
[1722236908137,2.4088,3384.6,3383.9,9.79413]
[1722236909335,3.07799652,3384.6,3383.9,9.79413]
[1722236909729,2.36373,3384.5,3383.9,9.79413]
[1722236910427,2.3381,3384.3,3383.6,7.43]
[1722236910632,0.05920198,3384.2,3383.6,7.43]
[1722236910958,2.3384,3384.1,3383.6,7.43]
[1722236911730,4.70239,3384.1,3383.6,7.43]
[1722236912262,2.4755,3383.8,3383.6,7.43]
[1722236912433,4.8397,3383.8,3383.1,9.79468]
[1722236912639,2.36429,3383.7,3383.1,7.43]
[1722236914375,2.36434,3383.6,3383.1,7.43]
[1722236914676,4.8397,3383.8,3383.2,2.36461]
[1722236915059,2.4755,3383.8,3383.6,2.36434]
[1722236915563,2.4755,3383.8,3383.4,2.36443]
[1722236918285,2.3297,3384.2,3383.7,2.36427]
[1722236919976,3.035427,3384.2,3383.3,2.36451]
[1722236920287,3.035427,3384.2,3383.1,9.79466]
[1722236920288,2.4577,3383.7,3383.1,9.79466]
[1722236921490,2.4577,3383.7,3383.1,2.36466]
[1722236921811,2.4577,3383.7,3383.2,2.36461]
[1722236925559,2.4577,3383.7,3383.3,2.36454]
[1722236925762,2.4577,3383.7,3383.4,2.36447]
[1722236926258,2.4577,3383.7,3383.2,2.36461]
[1722236930159,2.4577,3383.7,3383.3,2.36455]
[1722236930913,2.36441,3383.5,3382.8,7.43]
[1722236931076,2.2691,3383.4,3382.9,2.36483]
[1722236932202,2.2691,3383.4,3383.0,2.36476]
[1722236932702,2.2691,3383.4,3382.8,9.79485]
[1722236934874,2.2691,3383.4,3382.9,2.36481]
[1722236935075,2.2691,3383.4,3383.0,2.36476]
[1722236935322,2.2691,3383.4,3383.1,1.072]
[1722236935989,2.2691,3383.4,3383.1,3.43669]
[1722236936518,2.2691,3383.4,3383.1,1.072]
[1722236937992,4.6336,3383.4,3383.1,1.072]
[1722236938189,5.333401,3383.4,3383.1,1.072]
[1722236939054,2.36455,3383.3,3382.8,7.43]
[1722236939360,4.80012,3383.2,3382.8,7.43]
[1722236939519,4.80012,3383.2,3382.8,8.502]
[1722236940560,2.4355,3383.2,3383.0,1.072]
[1722236941057,2.4355,3383.2,3382.6,2.36498]
[1722236941058,2.4355,3383.2,3382.9,1.072]
[1722236941258,2.4355,3383.2,3382.8,2.36488]
[1722236941466,2.4355,3383.2,3382.9,1.072]
[1722236943870,0.05920198,3383.1,3382.7,1.072]
[1722236944021,5.5224892,3383.2,3382.7,1.072]
[1722236944488,2.4355,3383.2,3382.9,3.43682]
[1722236944622,2.4355,3383.2,3382.7,3.43691]
[1722236945145,2.4355,3383.2,3382.9,1.072]
[1722236945343,4.80017,3383.2,3382.7,1.072]
[1722236945659,4.80017,3383.2,3382.7,5.80188]
[1722236945660,2.4355,3383.2,3382.7,5.80188]
[1722236945872,2.4355,3383.2,3382.8,2.36489]
[1722236946756,2.2679,3383.1,3382.5,2.36504]
[1722236946967,2.2679,3383.1,3382.6,1.072]
[1722236948076,4.76557,3383.0,3382.6,1.072]
[1722236948676,2.4008,3383.0,3382.7,2.36493]
[1722236949465,2.4008,3383.0,3382.3,7.43]
[1722236949674,2.4008,3383.0,3382.7,1.072]
[1722236950693,2.4008,3383.0,3382.7,3.43691]
[1722236950978,2.4008,3383.0,3382.5,3.43711]
[1722236951193,2.4008,3383.0,3382.7,1.072]
[1722236952081,2.4008,3383.0,3382.6,2.36502]
[1722236952082,2.4008,3383.0,3382.6,1.072]
[1722236952993,2.4008,3383.0,3382.6,3.437]
[1722236954105,2.4008,3383.0,3382.8,2.3649]
[1722236954462,2.4008,3383.0,3382.3,7.43]
[1722236954664,2.4008,3383.0,3382.5,3.43706]
[1722236954893,2.4008,3383.0,3382.6,2.36503]
[1722236955206,2.4008,3383.0,3382.4,2.36518]
[1722236955372,2.4008,3383.0,3382.6,1.072]
[1722236956095,4.76556,3383.0,3382.6,1.072]
[1722236956310,2.4008,3383.0,3382.6,1.072]
[1722236956504,2.4008,3383.0,3382.7,2.36497]
[1722236957510,2.4008,3383.0,3382.6,1.072]
[1722236958787,0.05920198,3382.9,3382.4,1.072]
[1722236958985,2.456,3382.8,3382.4,1.072]
[1722236959812,0.05920198,3382.7,3382.3,2.36524]
[1722236960697,0.05920198,3382.7,3382.2,1.072]
[1722236961574,2.4565,3382.6,3382.4,3.43714]
[1722236961778,2.4565,3382.6,3382.4,1.072]
[1722236962672,2.4565,3382.6,3382.4,3.43716]
[1722236963013,2.4565,3382.6,3382.5,2.36511]
[1722236963319,2.3544,3383.0,3382.5,2.36511]
[1722236967328,4.71917,3383.0,3382.3,2.36522]
[1722236967535,2.3931,3382.9,3382.3,2.36522]
[1722236968536,2.3931,3382.9,3382.4,2.36518]
[1722236969274,2.3931,3382.9,3382.7,2.36495]
[1722236969771,2.3931,3382.9,3382.8,2.3649]
[1722236969995,2.3763,3383.2,3382.7,1.072]
[1722236970120,2.2969,3383.5,3383.0,2.36475]
[1722236970838,2.2969,3383.5,3382.8,2.36487]
[1722236971044,2.3183,3383.4,3382.8,2.36487]
[1722236971472,4.68279,3383.4,3382.8,2.36487]
[1722236973139,2.3183,3383.4,3382.9,2.36483]
[1722236973737,2.36466,3383.2,3382.4,9.79517]
[1722236973927,2.4582,3383.1,3382.5,2.3651]
[1722236975370,2.4582,3383.0,3382.4,7.43]
[1722236975538,2.4582,3383.0,3382.5,1.072]
[1722236977667,2.4582,3383.0,3382.5,3.43711]
[1722236978534,4.32009724,3383.0,3382.5,3.43711]
[1722236978777,5.22504296,3383.0,3382.5,3.43711]
[1722236978941,5.22504296,3383.0,3382.4,7.43]
[1722236978942,7.58981296,3383.0,3382.4,7.43]
[1722236979241,7.58981296,3383.0,3382.4,8.502]
[1722236980060,2.4915,3382.9,3382.4,10.86718]
[1722236981030,2.4915,3382.9,3382.4,3.43718]
[1722236981888,2.4915,3382.9,3382.6,1.072]
[1722236982377,2.4915,3382.9,3382.2,2.36531]
[1722236982378,4.91553198,3382.9,3382.3,2.36524]
[1722236982603,6.77753009,3382.9,3382.3,2.36524]
[1722236983088,7.90898021,3382.9,3382.3,2.36524]
[1722236983678,7.90841245,3382.9,3382.3,2.36524]
[1722236984048,7.90840908,3382.9,3382.3,2.36524]
[1722236984651,2.36533,3382.2,3382.0,7.43]
[1722236984844,2.2551,3382.1,3381.5,1.072]
[1722236985115,2.2551,3382.1,3381.9,3.43747]
[1722236985245,2.2551,3382.1,3381.8,2.36559]
[1722236985448,2.2551,3382.1,3381.6,1.072]
[1722236985788,2.2551,3382.1,3381.6,3.43774]
[1722236986151,2.2551,3382.1,3381.6,1.072]
[1722236986659,4.62052,3382.1,3381.6,1.072]
[1722236986859,2.2551,3382.1,3381.6,1.072]